Cogmind - Beta 14 @@@ ROGUE MODE // 2025.02.28 @ 21:09:19 Player: Zaros426 Result: Destroyed by P-70 Sage with Tesla Rifle Performance ------------- Evolutions (5) 2500 Regions Visited (17) 3400 Robots Destroyed (451) 2255 Value Destroyed (16677) 16677 Prototype IDs (61) 1220 Alien Tech Used (0) 0 Bonus (10634) 10634 TOTAL SCORE: 36686 Bonus ------- Triggered High Security 500 High Alert Combat Kills 6013 Follower Combat Kills 1251 Entered Garrisons 800 Used RIF Installer 2000 Aligned with FarCom 300 Friendly Fire -230 Cogmind --------- Core Integrity 0/1000 Matter 57/300 Energy 41/100 System Corruption 2% Temperature Cool (2) Movement Flying (45) Location -5/Factory Parts ------- > --- POWER (1) -------- (None) > --- PROPULSION (4) --- Field Propulsion Drive > --- UTILITY (6) ------ Advanced System Shield > --- WEAPON (6) ------- (None) > --- INVENTORY (5) ---- Improved Transmission Jammer Advanced ECM Suite Long-range Tractor Beam Latent Energy Streamer Mini Smartbomb Launcher Peak State ------------ > --- POWER ------------ Improved Deuterium Engine > --- PROPULSION ------- Armored Heavy Treads Advanced Heavy Treads > --- UTILITY ---------- Advanced Cooling System High-capacity Storage Unit Experimental Targeting Computer Transmission Jammer Centrium Light Armor Plating Improved Corruption Screen > --- WEAPON ----------- Wave Gun Nova Cannon Nova Cannon KE Penetrator KE Penetrator Linear Accelerator > --- INVENTORY -------- Armored Medium Treads Coolant Injector Huge Storage Unit High-capacity Battery Matter Compressor Recoil Nullifier Advanced ECM Suite Hardlight Generator Relay Coupler [NC] Relay Coupler [NC] Improved Corruption Screen Long-range Tractor Beam Mini Drone Bay Advanced Drone Bay Latent Energy Streamer Cooled Plasma Cannon Linear Accelerator Remote Datajack Plasma Lance [Rating: 119] Favorites ----------- Power Heavy Ion Engine Engine Heavy Ion Engine Power Core Hybrid Fission Core Reactor Particle Reactor Propulsion Light Treads Treads Light Treads Leg Flexi-carbon Leg Wheel Armored Wheel Hover Unit Improved Airjet Flight Unit Improved VTOL Module Utility High-capacity Storage Unit Device Advanced Heat Sink Storage High-capacity Storage Unit Processor Improved Targeting Computer Hackware Hacking Suite Protection Improved Light Armor Plating Weapon Enhanced Autogun Energy Gun Pulse Rifle Energy Cannon Nova Cannon Ballistic Gun Enhanced Autogun Ballistic Cannon Linear Accelerator Launcher Grenade Launcher Special Weapon Remote Datajack Impact Weapon Powered Hammer Slashing Weapon Great Axe Piercing Weapon Plasma Lance Special Melee Weapon Datajack Build | -11 -10 -10 -9 -9 -9 -8 -8 -8 -7 -7 -7 -7 -6 -6 -6 -6 -5 ------- Run | Yrd Mat Min Mat Min Exi Min Mat Gar Fac Gar Fac Gar Fac Was Fac Gar Fac Slots Evolved 10 | . . . 2 . . . 2 . 2 . . . 2 . . . 2 Power . | . . . . . . . . . . . . . . . . . . Propulsion 2 | . . . 1 . . . . . 1 . . . . . . . . Utility 4 | . . . 1 . . . . . 1 . . . 2 . . . . Weapon 4 | . . . . . . . 2 . . . . . . . . . 2 Parts Attached 439 | 7 14 2 44 2 4 7 43 28 24 17 13 11 67 9 6 71 70 Power 27 | 1 2 . 6 . 1 . 3 2 3 1 . . 2 . . 5 1 Engine 18 | 1 2 . 6 . 1 . 3 . 1 . . . 1 . . 2 1 Core 7 | . . . . . . . . 2 2 1 . . 1 . . 1 . Reactor 2 | . . . . . . . . . . . . . . . . 2 . Propulsion 77 | 2 3 . 15 . . 1 13 4 7 . 1 2 9 1 . 12 7 Treads 63 | 2 3 . 14 . . . 10 4 5 . 1 2 8 1 . 7 6 Leg 7 | . . . . . . 1 . . 1 . . . . . . 5 . Wheel 3 | . . . 1 . . . 2 . . . . . . . . . . Hover 2 | . . . . . . . . . 1 . . . 1 . . . . Flight 2 | . . . . . . . 1 . . . . . . . . . 1 Utility 127 | 1 3 . 7 . 1 1 5 4 5 9 8 2 24 4 3 15 35 Device 73 | . 1 . 3 . . 1 3 4 3 5 6 2 15 3 3 7 17 Storage 13 | 1 1 . 1 . 1 . . . . 1 . . 1 . . 2 5 Processor 12 | . . . 3 . . . 1 . . . 1 . 4 . . . 3 Hackware 18 | . 1 . . . . . 1 . 2 2 1 . 3 1 . 2 5 Protection 11 | . . . . . . . . . . 1 . . 1 . . 4 5 Artifact . | . . . . . . . . . . . . . . . . . . Weapon 208 | 3 6 2 16 2 2 5 22 18 9 7 4 7 32 4 3 39 27 Energy Gun 36 | 2 2 . 10 1 1 . 3 3 2 1 3 1 1 . . 1 5 Energy Cannon 41 | . 2 . 5 . . 2 1 3 1 2 . 1 7 . 2 12 3 Ballistic Gun 75 | 1 2 . . . . 2 12 12 4 3 . 2 17 . . 18 2 Ballistic Cannon 12 | . . . . . . . . . . . . . 2 1 . 2 7 Launcher 14 | . . 2 1 1 . 1 3 . . . . . . . . . 6 Special Weapon 15 | . . . . . . . . . 1 1 1 2 1 1 . 4 4 Impact Weapon 2 | . . . . . . . 2 . . . . . . . . . . Slashing Weapon 10 | . . . . . . . 1 . 1 . . 1 4 2 1 . . Piercing Weapon 2 | . . . . . . . . . . . . . . . . 2 . Special Melee Weapon 1 | . . . . . 1 . . . . . . . . . . . . Unidentified Prototypes 18 | . . . 3 . . . 2 . 3 . 1 . 4 1 . 2 2 Parts Lost 72 | . 3 1 8 . . 2 5 10 1 1 . . 11 . . 10 20 Power 8 | . . . 2 . . . . 2 . . . . . . . 2 2 Propulsion 17 | . 2 . 4 . . 1 3 1 . . . . 1 . . 1 4 Utility 13 | . . . . . . . . . . . . . 3 . . 4 6 Weapon 34 | . 1 1 2 . . 1 2 7 1 1 . . 7 . . 3 8 Highest Loss Streak 15 | . 1 1 2 . . 2 3 4 1 1 . . 4 . . 7 15 To Critical Strikes 2 | . . . . . . . . 1 . . . . 1 . . . . Average Slot Usage (%) 94 | . 93 95 98 100 100 99 98 98 97 99 100 86 86 83 84 91 81 Engine 6 | . 14 14 10 11 11 11 8 2 5 3 . . 1 . . 2 4 Core 2 | . . . . . . . . 5 1 3 7 7 4 6 6 2 . Treads 23 | . 27 28 31 33 33 25 23 27 26 30 30 18 15 20 20 10 11 Leg 1 | . . . . . . 7 2 . 1 . . . . . . 9 . Device 9 | . 1 . 5 11 11 11 2 7 9 14 11 10 19 16 18 17 7 Storage 8 | . 14 14 11 11 11 11 9 9 7 7 7 7 6 6 6 8 5 Processor 8 | . . . 11 11 11 11 15 9 7 7 7 7 10 6 6 6 10 Hackware 2 | . 6 14 4 . . . . 1 4 . 3 3 . 6 6 . 6 Energy Gun 5 | . 5 . 17 21 11 7 2 2 7 6 6 6 1 . . . 3 Energy Cannon 5 | . 11 . 4 . . 14 7 4 2 1 7 2 2 . 5 3 10 Ballistic Gun 13 | . 11 . . . . . 24 27 17 19 15 14 19 1 . 18 7 Peak Build Rating 119 | 6 10 10 22 22 23 23 39 53 59 59 63 75 91 85 84 104 119 Average Rating 49 | 5 8 9 19 21 21 22 30 35 53 57 60 69 83 78 82 80 103 On Entrance 43 | . 6 10 9 22 22 23 23 34 47 57 58 60 75 79 77 84 100 Naked Turns . | . . . . . . . . . . . . . . . . . . Heaviest Build 150 | 13 30 31 55 55 55 57 66 75 72 73 78 77 87 91 92 92 150 Greatest Support 150 | 40 40 40 60 60 60 60 66 63 104 104 104 150 150 131 131 131 130 Greatest Overweight (x) 3 | . . . 2 . . 1 3 1 1 . . . 1 . . 2 2 Average Overweight (x) . | . . . . . . . . . . . . . . . . . . Largest Inventory Capacity 25 | 8 15 15 20 20 20 20 20 20 20 20 20 20 20 20 20 20 25 Average Capacity 19 | 7 14 15 19 20 20 20 20 20 20 20 20 20 20 20 20 20 23 Most Carried 25 | 4 15 15 20 20 20 20 20 20 20 20 20 20 20 20 20 20 25 Average Carried 18 | 1 9 14 18 20 19 18 18 19 19 19 19 19 19 19 19 19 21 Final Capacity 20 | 8 15 15 20 20 20 20 20 20 20 20 20 20 20 20 20 20 5 Final Carried 20 | 4 15 15 20 20 20 18 20 20 20 19 20 20 19 20 20 17 5 Class Distribution -------------------- 22% | Skirmisher 21% | Mutant 20% | Scavenger-Skirmisher 13% | Scavenger-Mutant 9% | Scavenger-Gunner 6% | Scavenger-Tank 6% | Executioner Dominant Class ---------------- Mutant | -10/Materials Scavenger-Mutant | -10/Mines Scavenger-Mutant | -9/Materials Mutant | -9/Mines Mutant | -9/Exiles Mutant | -8/Mines Scavenger-Skirmisher | -8/Materials Scavenger-Skirmisher | -8/Garrison Scavenger-Skirmisher | -7/Factory Skirmisher | -7/Garrison Skirmisher | -7/Factory Scavenger-Skirmisher | -7/Garrison Scavenger-Gunner | -6/Factory Mutant | -6/Waste Mutant | -6/Factory Scavenger-Tank | -6/Garrison Executioner | -5/Factory Resources | -11 -10 -10 -9 -9 -9 -8 -8 -8 -7 -7 -7 -7 -6 -6 -6 -6 -5 ----------- Run | Yrd Mat Min Mat Min Exi Min Mat Gar Fac Gar Fac Gar Fac Was Fac Gar Fac Matter Collected 12972 | 276 178 361 460 40 . 125 1289 1140 708 903 343 371 2464 . . 2072 2242 Remotely 1878 | . . . . . . . . . . . . . 316 . . 325 1237 Salvage Created 18733 | 172 993 254 2353 39 . 258 2322 1291 1026 809 570 1337 3027 . . 1557 2725 Parts 980 | 12 59 23 158 9 . 19 135 64 47 43 28 56 135 . . 79 113 Haulers Intercepted 23 | . 2 . 6 . . . 4 . . . 3 . 3 . . . 5 Recyclers Shooed 8 | . 1 . . . . . . . . . . . 7 . . . . Parts Field Recycled . | . . . . . . . . . . . . . . . . . . Retrieved Matter . | . . . . . . . . . . . . . . . . . . Parts Self-Destructed . | . . . . . . . . . . . . . . . . . . Prevented . | . . . . . . . . . . . . . . . . . . Kills | -11 -10 -10 -9 -9 -9 -8 -8 -8 -7 -7 -7 -7 -6 -6 -6 -6 -5 ------- Run | Yrd Mat Min Mat Min Exi Min Mat Gar Fac Gar Fac Gar Fac Was Fac Gar Fac Combat Hostiles Destroyed 337 | . 20 14 54 4 . 6 37 26 20 18 4 13 36 . . 35 50 Melee 1 | . . . . . . . . . . . . . . . . 1 . Guns 206 | . 7 . 42 . . 3 30 24 17 13 2 9 29 . . 23 7 Cannons 66 | . 12 . 7 . . . 1 1 3 5 2 4 5 . . 10 16 AOE 59 | . . 14 4 4 . 3 6 . . . . . 1 . . . 27 Classes Destroyed 22 | 2 6 1 4 . . . 3 2 . . . . 2 . . 1 1 Worker 21 | . 3 1 4 . . 1 4 . . . 1 . 3 . . . 4 Builder 15 | . . . 1 . . . 2 . . . 1 . 1 . . . 10 Tunneler 8 | 4 . 1 . 1 . 2 . . . . . . . . . . . Hauler 23 | . 2 . 6 . . . 4 . . . 3 . 3 . . . 5 Recycler 21 | 1 . . 4 . . 2 4 . 1 . 1 . 4 . . . 4 Carrier 1 | . . . . . . . . . . . . . . . . . 1 Mechanic 5 | . . . 2 . . . 1 . . . . . 1 . . . 1 Operator 11 | . 1 1 4 . . . 3 . 1 . . . 1 . . . . Watcher 19 | . 2 . 4 . . . 5 . . . 2 . 2 . . . 4 Swarmer 68 | . 3 6 17 4 . 4 6 3 4 2 . 3 2 . . 9 5 Saboteur 8 | . . . . . . . . . . . . . 1 . . 7 . Grunt 163 | . 17 7 27 . . 1 21 9 10 12 2 7 14 . . 7 29 Brawler 5 | . . . . . . . 1 . . . . 1 1 . . 2 . Duelist 7 | . . . 1 . . 1 1 . . . . . 1 . . . 3 Protector 3 | . . . . . . . 2 . . . . . . . . . 1 Sentry 37 | . . . 9 . . . 4 6 1 1 1 1 6 . . 6 2 Specialist 2 | . . . . . . . . . . . . . 2 . . . . Hunter 19 | . . . . . . . 2 6 1 . 1 1 4 . . 1 3 Programmer 20 | . . . . . . . . 1 4 3 . . 5 . . . 7 Behemoth 2 | . . . . . . . . 1 . . . . . . . 1 . Striker 2 | . . . . . . . . . . . . . . . . 2 . Assembled 1 | . . 1 . . . . . . . . . . . . . . . Best Kill Streak 15 | 2 6 3 8 4 . 4 7 4 6 3 5 3 15 . . 11 11 Combat Bots Only 14 | . 6 3 5 4 . 4 6 4 5 3 2 3 14 . . 11 6 Max Kills in Single Turn 6 | 1 1 3 3 3 . 2 4 2 2 2 2 1 2 . . 2 6 Gunslinging 1 | . . . 1 . . . . 1 1 1 . . . . . 1 . Exploded 5 | . . 3 3 3 . 2 3 . . . . . 1 . . . 5 Melee 1 | . . . . . . . . . . . . . . . . 1 . Uniques/NPCs Destroyed . | . . . . . . . . . . . . . . . . . . Combat | -11 -10 -10 -9 -9 -9 -8 -8 -8 -7 -7 -7 -7 -6 -6 -6 -6 -5 -------- Run | Yrd Mat Min Mat Min Exi Min Mat Gar Fac Gar Fac Gar Fac Was Fac Gar Fac Hostile Shots Fired 1833 | . 90 28 198 10 . 18 135 161 77 47 23 41 354 . 1 304 346 Missed 540 | . 16 10 66 6 . 5 38 43 32 12 2 11 117 . . 83 99 Damage Taken 18896 | . 847 310 1540 54 . 188 1516 1851 582 495 152 228 2621 . 18 3460 5034 Core 2231 | . 150 31 167 8 . 10 194 230 71 . 10 28 178 . . 154 1000 Absorbed by Shields 2209 | . . . . . . . 20 45 52 77 141 180 1068 . . 626 . Reduced by Siege Mode 390 | . . . . . . . . . . . . . 24 . . 342 24 Regen/Repaired (Parts) 1499 | . . . 90 . . . 196 . 136 . . . 309 . . . 768 Core Remaining (%) 57 | 100 . 27 . . . 53 . 22 . . . 84 . . . 60 . Volleys Fired 950 | 14 73 21 150 9 . 18 94 81 42 66 24 29 132 7 . 90 100 Largest 6 | 2 2 2 2 2 . 2 4 4 4 4 4 4 4 1 . 4 6 Hottest 467 | 80 100 60 136 126 . 136 182 264 213 203 203 177 177 5 . 287 467 Shots Fired 2514 | 25 143 31 298 18 . 34 301 257 152 152 71 76 424 7 . 271 254 Gun 1923 | 25 73 . 238 16 . 30 250 246 139 141 53 63 380 . . 193 76 Cannon 474 | . 70 . 57 . . 2 47 11 10 7 13 9 40 . . 60 148 Launcher 67 | . . 31 3 2 . 2 4 . . . . . . . . . 25 Special 50 | . . . . . . . . . 3 4 5 4 4 7 . 18 5 Kinetic 1514 | 7 50 . . . . . 229 241 107 98 39 42 372 . . 205 124 Thermal 704 | 11 70 . 295 16 . 32 36 11 19 43 13 . 14 . . 44 100 Explosive 67 | . . 31 3 2 . 2 4 . . . . . . . . . 25 Electromagnetic 179 | 7 23 . . . . . 32 5 23 7 14 30 34 . . 4 . Robot Hit Streak 59 | 7 15 5 21 12 . 17 18 29 33 25 27 39 59 8 . 42 21 Robot Miss Streak 5 | 1 3 3 5 1 . 1 5 3 4 4 3 1 2 1 . 4 4 Penetration Max 1 | . . . . . . . 1 . . . . . 1 . . 1 1 Secondary Targets 32 | . . . 7 . . . 4 5 3 5 . . 3 . . 5 . Max Gunslinging Chain 1 | . . . 1 . . . 1 1 1 1 . . 1 . . 1 . Shots Hit Robots 1647 | 17 91 10 198 10 4 19 189 176 96 78 40 69 319 7 . 181 143 Core Hits 784 | 6 41 27 91 9 . 12 104 56 40 28 18 35 109 . . 69 139 Critical Kills 17 | . 1 . 2 . . . 1 1 . . . . 6 . . 2 4 Critical Parts Destroyed 14 | . . . . . . . 1 1 . 1 . . 7 . . 3 1 Critical Strikes 56 | . 1 . 14 . . . 3 3 . 2 . 3 13 . . 5 12 Burn 14 | . . . 12 . . . 1 . . 1 . . . . . . . Meltdown 8 | . 1 . 2 . . . 1 1 . . . . 1 . . . 2 Destroy 24 | . . . . . . . 1 2 . 1 . . 12 . . 5 3 Blast 7 | . . . . . . . . . . . . . . . . . 7 Sever 3 | . . . . . . . . . . . . 3 . . . . . Melee Attacks 78 | . . . . . 4 . 9 3 2 . . 45 5 2 3 5 . Impact 10 | . . . . . . . 7 3 . . . . . . . . . Slashing 59 | . . . . . . . 2 . 2 . . 45 5 2 3 . . Piercing 5 | . . . . . . . . . . . . . . . . 5 . Sneak Attacks 6 | . . . . . 4 . . . . . . . . 2 . . . Combat Hostiles 2 | . . . . . . . . . . . . . . 2 . . . Follow-up Attacks . | . . . . . . . . . . . . . . . . . . Damage Inflicted 45923 | 188 1372 1037 3887 315 . 593 4371 2923 2364 1721 973 2755 7060 73 . 4311 11980 Guns 24026 | 188 501 . 2998 170 . 310 2660 2594 1957 1490 507 679 5896 . . 2818 1258 Cannons 10156 | . 827 . 633 . . 40 932 233 265 231 404 256 1058 . . 1493 3784 Explosions 9898 | . 44 1037 256 145 . 243 778 96 142 . 62 53 104 . . . 6938 Melee 1840 | . . . . . . . . . . . . 1767 . 73 . . . Ramming 3 | . . . . . . . 1 . . . . . 2 . . . . Kinetic 20172 | 47 283 . . . . . 2401 2508 1399 1011 360 458 5918 . . 2929 2858 Thermal 12409 | 113 871 . 3631 170 . 479 754 301 612 479 209 53 562 . . 1262 2913 Explosive 8287 | . . 1037 256 145 . 114 526 . . . . . . . . . 6209 Electromagnetic 3212 | 28 218 . . . . . 689 114 353 231 404 477 578 . . 120 . Impact . | . . . . . . . . . . . . . . . . . . Slashing 1840 | . . . . . . . . . . . . 1767 . 73 . . . Piercing . | . . . . . . . . . . . . . . . . . . Highest Corruption 17 | . . . . . . . 5 5 7 9 9 9 7 17 13 11 1 Average Corruption 6 | . . . . . . . 5 4 4 8 9 9 1 11 11 11 1 Corruption Purged 28 | . . . . . . . . 7 . . . . 11 8 2 . . Corruption Blocked 8 | . . . . . . . . . . . . . . . . . 8 Effects 319 | . . . . . . . 20 30 46 53 24 33 18 10 9 76 . Message Errors 79 | . . . . . . . 4 9 10 17 7 7 3 2 3 17 . Matter Fused 67 | . . . . . . . 7 4 11 8 5 10 4 1 1 16 . Heat Flow Errors 39 | . . . . . . . 5 2 5 6 3 6 2 . 3 7 . Energy Discharges 40 | . . . . . . . 2 3 7 7 1 4 4 . 1 11 . Parts Rejected 3 | . . . . . . . . . . . . . . 2 . 1 . Parts Fused 5 | . . . . . . . . . . 2 . 1 . 1 . 1 . Data Loss (minor) 36 | . . . . . . . 2 5 8 5 5 1 2 1 1 6 . Data Loss (major) 11 | . . . . . . . . 1 2 1 . . 1 . . 6 . Misfires 13 | . . . . . . . . 1 2 2 1 2 . . . 5 . Alerts 6 | . . . . . . . . 2 . 2 1 . . 1 . . . Misdirections 2 | . . . . . . . . . . . . . . 2 . . . Weapon Failures 18 | . . . . . . . . 3 1 3 1 2 2 . . 6 . Overload Shots 4 | . . . . . . . . . . . . . 3 . . . 1 Overflow Damage 760 | . . 16 11 . . 49 94 . . . . 3 13 . . 17 557 Projectiles 146 | . . . 11 . . . 14 . . . . . 13 . . 17 91 Explosions 611 | . . 16 . . . 49 80 . . . . . . . . . 466 Melee 3 | . . . . . . . . . . . . 3 . . . . . Knockbacks 19 | . . . . . . . . . . . . . 3 . . . 16 Impact . | . . . . . . . . . . . . . . . . . . Kinetic 16 | . . . . . . . . . . . . . 3 . . . 13 Secondary 3 | . . . . . . . . . . . . . . . . . 3 Self-Inflicted Damage 494 | . . 117 . . . 57 29 . 25 . . . . . . . 266 Shots 13 | . . 5 . . . 1 2 . 1 . . . . . . . 4 Rammed 2 | . . . . . . . 1 . . . . . 1 . . . . Targets Rammed 2 | . . . . . . . 1 . . . . . 1 . . . . Kicked . | . . . . . . . . . . . . . . . . . . Crushed . | . . . . . . . . . . . . . . . . . . Highest Temperature 808 | 36 318 12 369 36 . 81 417 381 398 257 310 232 239 . 175 229 808 Average Temperature 101 | 19 100 9 84 14 . 22 132 132 95 85 126 56 53 . 88 75 157 Received Heat Transfer 4537 | . 435 63 528 21 . 27 633 363 198 106 58 67 512 . 9 333 1184 Effects 32 | . 2 . 5 . . . 10 3 1 . 3 . . . . . 8 Shutdowns 5 | . . . 1 . . . 1 1 . . . . . . . . 2 Energy Bleed 7 | . 1 . 1 . . . 2 . 1 . . . . . . . 2 Interference 14 | . 1 . 3 . . . 5 2 . . 3 . . . . . . Matter Decay 2 | . . . . . . . . . . . . . . . . . 2 Short Circuit 2 | . . . . . . . 1 . . . . . . . . . 1 Damage (minor) 2 | . . . . . . . 1 . . . . . . . . . 1 Siege Activations 7 | . . . . . . . . . . . . . 4 . . 2 1 Total Turns 169 | . . . . . . . . . . . . . 69 . . 94 6 Longest Duration 76 | . . . . . . . . . . . . . 26 . . 76 6 Robots Corrupted 1 | . . . . . . . . . . . . . . . . 1 . Combat Hostiles 1 | . . . . . . . . . . . . . . . . 1 . Parts Fried 10 | . . . . . . . 4 . . . 2 2 2 . . . . Impact Corruptions . | . . . . . . . . . . . . . . . . . . Robots Melted 8 | . 1 . 2 . . . 1 1 . . . . 1 . . . 2 Combat Hostiles 4 | . 1 . 1 . . . . 1 . . . . 1 . . . . Parts Melted 44 | . 3 . 21 . . 3 5 1 . 3 . . 1 . . 1 6 Heat Transferred 19552 | 250 1789 . 8197 370 . 940 1273 383 705 740 218 50 740 . . 1412 2485 Parts Sabotaged 10 | . . . . . . . . . . . . . 3 . . 3 4 Parts Stolen . | . . . . . . . . . . . . . . . . . . Parts Stripped . | . . . . . . . . . . . . . . . . . . Power Chain Reactions 12 | . 1 . . . . . 3 1 3 . 1 1 2 . . . . Latent Energy Used 117 | . . . . . . . . 117 . . . . . . . . . LE Corruption 2 | . . . . . . . . 2 . . . . . . . . . Alert | -11 -10 -10 -9 -9 -9 -8 -8 -8 -7 -7 -7 -7 -6 -6 -6 -6 -5 ------- Run | Yrd Mat Min Mat Min Exi Min Mat Gar Fac Gar Fac Gar Fac Was Fac Gar Fac Peak Influence 2358 | 25 422 293 1408 713 . 116 724 1093 697 1326 740 878 1234 435 323 1514 2358 Initial 794 | . 16 74 79 549 . . . 245 573 417 695 340 460 420 304 226 794 Average 633 | 11 204 172 716 582 . 48 298 708 601 950 635 641 836 429 312 939 1249 Maximum Alert Level 5 | . 2 1 4 3 . . 3 3 2 4 3 3 4 2 1 4 5 Low Security (%) 17 | 100 40 66 8 . . 100 47 . . . . . . . . . . Level 1 11 | . 57 33 19 4 . . 15 10 . . . 6 . . 100 11 . Level 2 30 | . 2 . 26 78 . . 22 34 100 19 87 59 23 100 . 14 . Level 3 26 | . . . 23 16 . . 14 54 . 54 12 33 54 . . 33 47 Level 4 12 | . . . 22 . . . . . . 26 . . 21 . . 39 30 Level 5 . | . . . . . . . . . . . . . . . . . 9 High Security . | . . . . . . . . . . . . . . . . . 12 Max Security . | . . . . . . . . . . . . . . . . . . Sterilizations 1 | . . . 1 . . . . . . . . . . . . . . Squads Dispatched 75 | . 5 . 13 . . . 6 . 8 . 2 . 21 . 1 . 19 Investigation 28 | . 4 . 7 . . . 4 . 4 . . . 3 . 1 . 5 Extermination 13 | . . . . . . . . . 4 . . . 6 . . . 3 Reinforcement 14 | . 1 . 3 . . . . . . . . . 8 . . . 2 Assault 17 | . . . 3 . . . 2 . . . 1 . 2 . . . 9 Garrison 3 | . . . . . . . . . . . 1 . 2 . . . . Intercept . | . . . . . . . . . . . . . . . . . . Searches Triggered . | . . . . . . . . . . . . . . . . . . Construction Impeded 3 | . . . 1 . . . . . . . . . 1 . . . 1 Haulers Reinforced 2 | . . . . . . . . . . . . . 2 . . . . Active Scanning Responses . | . . . . . . . . . . . . . . . . . . Cargo Convoy Interrupts . | . . . . . . . . . . . . . . . . . . Stealth | -11 -10 -10 -9 -9 -9 -8 -8 -8 -7 -7 -7 -7 -6 -6 -6 -6 -5 --------- Run | Yrd Mat Min Mat Min Exi Min Mat Gar Fac Gar Fac Gar Fac Was Fac Gar Fac Distress Signals 12 | . 1 . 4 . . . 2 . . . . . 3 . . . 2 Communications Jammed . | . . . . . . . . . . . . . . . . . . Distress Signals . | . . . . . . . . . . . . . . . . . . Times Spotted 501 | . 29 15 79 5 . 7 59 27 28 24 13 14 64 6 1 50 80 Peak Tracking Total 14 | . 6 3 7 4 . 4 7 5 5 5 5 4 8 3 2 10 14 Tactical Retreats 29 | . 1 . 3 . . . 2 2 2 3 . 2 7 . . 4 3 Traps | -11 -10 -10 -9 -9 -9 -8 -8 -8 -7 -7 -7 -7 -6 -6 -6 -6 -5 ------- Run | Yrd Mat Min Mat Min Exi Min Mat Gar Fac Gar Fac Gar Fac Was Fac Gar Fac Traps Triggered 26 | . 1 . 3 . . . . 4 1 3 . 1 6 . . 6 1 Indirectly . | . . . . . . . . . . . . . . . . . . Trap Hack Attempts . | . . . . . . . . . . . . . . . . . . Triggered . | . . . . . . . . . . . . . . . . . . Disarmed . | . . . . . . . . . . . . . . . . . . Reprogrammed . | . . . . . . . . . . . . . . . . . . Reused . | . . . . . . . . . . . . . . . . . . Traps Extracted . | . . . . . . . . . . . . . . . . . . Installed . | . . . . . . . . . . . . . . . . . . Triggered . | . . . . . . . . . . . . . . . . . . Machines | -11 -10 -10 -9 -9 -9 -8 -8 -8 -7 -7 -7 -7 -6 -6 -6 -6 -5 ---------- Run | Yrd Mat Min Mat Min Exi Min Mat Gar Fac Gar Fac Gar Fac Was Fac Gar Fac Machines Disabled 55 | . . 1 2 . . 2 6 4 2 1 . . 4 . . 7 26 Max in Single Turn 8 | . . 1 1 . . 1 2 2 1 1 . . 1 . . 1 8 Garrison Access 1 | . . . . . . . . . . . . . 1 . . . . Garrison Relay 6 | . . . . . . . . 2 . 1 . . . . . 3 . Phase Generator 1 | . . . . . . . . 1 . . . . . . . . . Machines Repaired . | . . . . . . . . . . . . . . . . . . Machines Dismantled . | . . . . . . . . . . . . . . . . . . Machines Sabotaged . | . . . . . . . . . . . . . . . . . . Overloaded Fab Kills . | . . . . . . . . . . . . . . . . . . Hacking | -11 -10 -10 -9 -9 -9 -8 -8 -8 -7 -7 -7 -7 -6 -6 -6 -6 -5 --------- Run | Yrd Mat Min Mat Min Exi Min Mat Gar Fac Gar Fac Gar Fac Was Fac Gar Fac Machines Accessed 84 | . 9 . 11 . 2 . 15 3 11 4 4 3 7 . 3 4 8 Terminals 50 | . 7 . 6 . . . 9 3 6 4 2 3 3 . 1 4 2 Fabricators 10 | . . . . . . . . . 3 . 1 . 3 . . . 3 Repair Stations 7 | . . . 1 . . . 2 . 1 . . . 1 . . . 2 Recycling Units 6 | . 2 . 2 . . . 2 . . . . . . . . . . Scanalyzers 5 | . . . 2 . . . 1 . . . . . . . 1 . 1 Garrison Access 4 | . . . . . . . 1 . 1 . 1 . . . 1 . . Total Hacks 216 | . 24 . 45 . 2 . 47 5 22 6 5 7 18 . 6 5 24 Successful 129 | . 17 . 29 . 2 . 31 2 13 3 2 2 6 . 5 2 15 Failed 86 | . 7 . 16 . . . 16 3 9 3 3 5 12 . 1 3 8 Catastrophic 19 | . 1 . 2 . . . 3 1 2 2 1 . 2 . 1 3 1 Database Lockouts 1 | . . . . . . . . . . . . . . . . . 1 Manual 88 | . 22 . 23 . 1 . 21 1 4 1 3 2 4 . . . 6 Terminals 129 | . 22 . 20 . . . 31 5 13 6 3 7 8 . 2 5 7 Fabricators 21 | . . . . . . . . . 6 . 1 . 7 . . . 7 Repair Stations 22 | . . . 4 . . . 6 . 2 . . . 3 . . . 7 Recycling Units 8 | . 2 . 4 . . . 2 . . . . . . . . . . Scanalyzers 30 | . . . 17 . . . 7 . . . . . . . 3 . 3 Garrison Access 4 | . . . . . . . 1 . 1 . 1 . . . 1 . . Terminal Hacks 36 | . 6 . 2 . 2 . 8 2 5 3 . 2 . . 1 2 3 Record 1 | . . . . . 1 . . . . . . . . . . . . Part Schematic 1 | . . . . . . . . . 1 . . . . . . . . Robot Schematic 3 | . 2 . . . . . . . 1 . . . . . . . . Robot Analysis 6 | . 2 . 1 . . . 2 . . . . . . . . . 1 Prototype ID Bank 3 | . 1 . . . . . 2 . . . . . . . . . . Open Door 1 | . . . . . . . . . . . . . . . . 1 . Branch Access Points 1 | . . . . . . . . . . . . . . . . . 1 Emergency Access Points 4 | . . . . . . . . 1 . 1 . 1 . . . 1 . Terminal Index 3 | . . . . . . . . . 1 . . . . . 1 . 1 Unreport Threat 3 | . . . . . . . 3 . . . . . . . . . . Locate Traps 3 | . . . 1 . . . 1 . 1 . . . . . . . . Zone Layout 2 | . 1 . . . . . . . 1 . . . . . . . . Garrison Registry 2 | . . . . . . . . 1 . . . 1 . . . . . Patrol Navigation 1 | . . . . . . . . . . 1 . . . . . . . Security Stations 1 | . . . . . . . . . . 1 . . . . . . . Derelict Proto ID Bank 1 | . . . . . 1 . . . . . . . . . . . . Fabricator Hacks 14 | . . . . . . . . . 4 . 1 . 3 . . . 6 Network Status 1 | . . . . . . . . . . . . . . . . . 1 Load Schematic 7 | . . . . . . . . . 2 . . . 2 . . . 3 Build 6 | . . . . . . . . . 2 . 1 . 1 . . . 2 Repair Station Hacks 15 | . . . 3 . . . 4 . 2 . . . 2 . . . 4 Scan Component 9 | . . . 2 . . . 2 . 1 . . . 1 . . . 3 Repair 6 | . . . 1 . . . 2 . 1 . . . 1 . . . 1 Recycling Unit Hacks . | . . . . . . . . . . . . . . . . . . Scanalyzer 24 | . . . 13 . . . 6 . . . . . . . 3 . 2 Insert Component 11 | . . . 6 . . . 3 . . . . . . . 1 . 1 Analyze 13 | . . . 7 . . . 3 . . . . . . . 2 . 1 Garrison Access Hacks 4 | . . . . . . . 1 . 1 . 1 . . . 1 . . Unlock Access 4 | . . . . . . . 1 . 1 . 1 . . . 1 . . Unauthorized Hacks 36 | . 11 . 11 . . . 12 . 1 . . . 1 . . . . Terminals 25 | . 9 . 7 . . . 9 . . . . . . . . . . Track 1 | . . . . . . . 1 . . . . . . . . . . Assimilate 1 | . 1 . . . . . . . . . . . . . . . . Botnet 6 | . 2 . 1 . . . 3 . . . . . . . . . . Disrupt 1 | . . . . . . . 1 . . . . . . . . . . Operators 2 | . 1 . 1 . . . . . . . . . . . . . . Skim 14 | . 5 . 5 . . . 4 . . . . . . . . . . Fabricators 2 | . . . . . . . . . 1 . . . 1 . . . . Download 1 | . . . . . . . . . 1 . . . . . . . . Recompile 1 | . . . . . . . . . . . . . 1 . . . . Repair Stations . | . . . . . . . . . . . . . . . . . . Recycling Units 6 | . 2 . 2 . . . 2 . . . . . . . . . . Tunnel 6 | . 2 . 2 . . . 2 . . . . . . . . . . Scanalyzers 3 | . . . 2 . . . 1 . . . . . . . . . . Extract 3 | . . . 2 . . . 1 . . . . . . . . . . Garrison Access . | . . . . . . . . . . . . . . . . . . Data Cores Recovered 4 | . 1 . . . . . 2 . . . . . 1 . . . . Used . | . . . . . . . . . . . . . . . . . . Hacking Detections 67 | . 7 . 10 . . . 11 2 9 3 4 2 6 . 3 2 8 Full Trace Events 16 | . . . 3 . . . 1 . 3 . . . 2 . 1 1 5 Feedback Events 2 | . . . . . . . . . . . . . . . . . 2 Corruption 2 | . . . . . . . . . . . . . . . . . 2 Feedback Blocked . | . . . . . . . . . . . . . . . . . . Robot Schematics Acquired 3 | . 2 . . . . . . . 1 . . . . . . . . Robots Built 2 | . . . . . . . . . . . . . . . . . 2 Authchips . | . . . . . . . . . . . . . . . . . . Time 121 | . . . . . . . . . . . . . . . . . 121 Total Robot Build Rating 2 | . . . . . . . . . . . . . . . . . 2 Part Schematics Acquired 28 | . . . 21 . . . 4 . 2 . . . . . . . 1 Parts Built 4 | . . . . . . . . . 1 . 2 . 1 . . . . Authchips 1 | . . . . . . . . . . . . . 1 . . . . Time 349 | . . . . . . . . . 174 . 117 . 58 . . . . Total Part Build Rating 20 | . . . . . . . . . 3 . 14 . 3 . . . . Parts Repaired 6 | . . . 1 . . . 2 . 1 . . . 1 . . . 1 Time 233 | . . . 13 . . . 86 . 26 . . . 86 . . . 22 Parts Recycled . | . . . . . . . . . . . . . . . . . . Recycled Matter . | . . . . . . . . . . . . . . . . . . Retrieved Matter . | . . . . . . . . . . . . . . . . . . Retrieved Components . | . . . . . . . . . . . . . . . . . . Parts Scanalyzed 11 | . . . 6 . . . 3 . . . . . . . 1 . 1 Part Schematics Acquired 10 | . . . 6 . . . 3 . . . . . . . . . 1 Parts Damaged . | . . . . . . . . . . . . . . . . . . Bothacking | -11 -10 -10 -9 -9 -9 -8 -8 -8 -7 -7 -7 -7 -6 -6 -6 -6 -5 ------------ Run | Yrd Mat Min Mat Min Exi Min Mat Gar Fac Gar Fac Gar Fac Was Fac Gar Fac Used RIF Installer 4 | . . . . . . . . 1 . 1 . 1 . . . 1 . Command Fork 2 | . . . . . . . . . . 1 . . . . . 1 . Structural Interface 1 | . . . . . . . . . . . . 1 . . . . . Robots Hacked 30 | . . . . . 4 . . . 3 2 3 3 2 6 . 4 3 Non-combat 5 | . . . . . 3 . . . . . . . . . . . 2 Combat 25 | . . . . . 1 . . . 3 2 3 3 2 6 . 4 1 Robot Hacks Applied 33 | . . . . . 4 . . . 3 2 3 3 3 6 . 6 3 parse_system 4 | . . . . . 4 . . . . . . . . . . . . mark_security 1 | . . . . . . . . . . . . . . . . . 1 ignore_targets 6 | . . . . . . . . . . . . . . 6 . . . spike_heat 2 | . . . . . . . . . . . . 1 . . . 1 . disable_weapons 1 | . . . . . . . . . . . . . . . . 1 . overwrite_iff 13 | . . . . . . . . . 2 . 3 2 3 . . 3 . streamctrl_high 2 | . . . . . . . . . 1 1 . . . . . . . formatsys_high 4 | . . . . . . . . . . 1 . . . . . 1 2 Relay Couplers Released 29 | . . . . . . . . 12 . 3 . . 1 . . 13 . Machine Destruction 26 | . . . . . . . . 9 . 3 . . 1 . . 13 . Programmers 3 | . . . . . . . . 3 . . . . . . . . . Attached 10 | . . . . . . . . . 1 2 1 . 1 1 . 2 2 Fabnet Peak Effective % . | . . . . . . . . . . . . . . . . . . Robots Rewired 7 | . . . . . . . . . . . . . . . . 7 . Allies Hacked . | . . . . . . . . . . . . . . . . . . Hacks Repelled . | . . . . . . . . . . . . . . . . . . Allies | -11 -10 -10 -9 -9 -9 -8 -8 -8 -7 -7 -7 -7 -6 -6 -6 -6 -5 -------- Run | Yrd Mat Min Mat Min Exi Min Mat Gar Fac Gar Fac Gar Fac Was Fac Gar Fac Total Allies 45 | . 1 1 . 3 . . . . 3 4 4 4 6 . . 12 7 Largest Group 4 | . 1 1 1 3 3 3 . . 1 3 2 2 3 . . 4 3 Highest-Rated Group 190 | . 10 31 31 40 40 40 . . 29 158 45 190 190 . . 164 93 Highest-Rated Ally 95 | . 10 31 31 16 16 16 . . 29 80 29 95 95 . . 46 31 Total Orders 18 | . 2 . . . . . . . . . 3 2 1 . . . 10 STAY 2 | . 1 . . . . . . . . . . . . . . . 1 FOLLOW 1 | . 1 . . . . . . . . . . . . . . . . AID 2 | . . . . . . . . . . . . . . . . . 2 EXPLORE 6 | . . . . . . . . . . . 2 1 . . . . 3 RETURN 7 | . . . . . . . . . . . 1 1 1 . . . 4 Ally Attacks 253 | . . 21 5 14 . 9 . . 14 27 9 6 69 . . 68 11 Total Damage 5521 | . . 230 63 155 . 113 . . 202 1015 113 81 1586 . . 1796 167 Kills 40 | . . 3 2 2 . 1 . . 1 8 . 1 13 . . 9 . Allies Corrupted 1 | . . . . . . . . . . . . 1 . . . . . Allies Melted 2 | . . . . . . . . . . 1 . . . . . 1 . Intel | -11 -10 -10 -9 -9 -9 -8 -8 -8 -7 -7 -7 -7 -6 -6 -6 -6 -5 ------- Run | Yrd Mat Min Mat Min Exi Min Mat Gar Fac Gar Fac Gar Fac Was Fac Gar Fac Robot Analysis Total 6 | . 2 . 1 . . . 2 . . . . . . . . . 1 Derelict Logs Recovered 3 | . . 2 . 1 . . . . . . . . . . . . . Drone Launches 20 | . . . . . . . . . . . 2 3 3 . . . 12 Drone Recoveries 17 | . . . . . . . . . . . 2 3 3 . . . 9 Exploration | -11 -10 -10 -9 -9 -9 -8 -8 -8 -7 -7 -7 -7 -6 -6 -6 -6 -5 ------------- Run | Yrd Mat Min Mat Min Exi Min Mat Gar Fac Gar Fac Gar Fac Was Fac Gar Fac Turns Passed 24499 | 204 1669 974 2214 835 561 1388 2448 1580 2047 1533 824 979 2959 205 226 1998 1855 Spaces Moved 10960 | 95 840 556 963 499 340 626 956 663 873 774 408 399 1238 95 124 828 683 Core 34 | 2 . . . . . . . . . . . . . . . . 32 Treads 10541 | 93 840 556 912 499 340 626 919 663 873 774 408 399 1238 95 124 534 648 Legs 294 | . . . . . . . . . . . . . . . . 294 . Wheels 88 | . . . 51 . . . 37 . . . . . . . . . . Hover . | . . . . . . . . . . . . . . . . . . Flight 3 | . . . . . . . . . . . . . . . . . 3 Fastest Speed 45 | 50 160 160 120 160 160 160 120 160 160 162 160 160 160 160 160 157 45 Average Speed 172 | 157 160 160 158 160 160 209 194 180 193 162 161 160 160 160 160 173 179 Slowest Speed 320 | 160 160 160 240 160 160 240 320 243 243 162 162 160 240 160 160 320 305 Overloaded Moves . | . . . . . . . . . . . . . . . . . . Propulsion Burnouts . | . . . . . . . . . . . . . . . . . . Robots Hopped . | . . . . . . . . . . . . . . . . . . Cave-ins Triggered . | . . . . . . . . . . . . . . . . . . Exploration Rate (%) 59 | 5 95 93 84 82 70 95 71 67 21 89 15 51 35 73 4 95 22 Regions Visited 17 Branch Regions 4 Pre-discovered Areas 8 | . 2 1 2 . 1 . 2 . . . . . . . . . . Known Exits Taken 6 | . . 1 . . . 1 1 . 1 . 1 . . . 1 . . Unknown Exits Taken 5 | 1 1 . 1 1 1 . . . . . . . . . . . . Scrap Searched 1 | . . . . . . 1 . . . . . . . . . . . Spaces Dug 55 | . . . . . . 13 9 2 1 . . 14 3 . 3 1 9 Terrain Destroyed 711 | . 3 152 21 11 . 35 70 97 15 . 2 19 19 . 3 8 256 Melee 33 | . . . . . . . 9 2 1 . . 14 3 . 3 1 . Projectile 65 | . . . . . . . 1 2 2 . . . 5 . . 7 48 AOE 613 | . 3 152 21 11 . 35 60 93 12 . 2 5 11 . . . 208 Terrain Rammed . | . . . . . . . . . . . . . . . . . . Walls Destroyed . | . . . . . . . . . . . . . . . . . . Machines Disabled . | . . . . . . . . . . . . . . . . . . Actions | -11 -10 -10 -9 -9 -9 -8 -8 -8 -7 -7 -7 -7 -6 -6 -6 -6 -5 --------- Run | Yrd Mat Min Mat Min Exi Min Mat Gar Fac Gar Fac Gar Fac Was Fac Gar Fac Total 14777 | 122 1030 609 1356 517 356 669 1358 897 1154 972 533 613 1962 141 145 1212 1131 Wait 1911 | 3 79 29 142 8 . 17 215 95 175 92 78 122 463 19 9 148 217 Move 10946 | 94 839 555 962 498 339 625 955 662 873 773 408 398 1238 94 124 826 683 Hop . | . . . . . . . . . . . . . . . . . . Pick Up 182 | 4 18 1 29 . 4 . 17 14 15 7 4 1 22 3 2 25 16 Fast Attach 136 | 6 2 . 13 . . 1 14 6 13 9 3 5 26 4 . 19 15 Attach 114 | . 3 . 9 . . 2 7 10 3 3 1 . 22 2 2 23 27 Detach 36 | . . . . . . . . 3 . . . . 8 1 . 6 18 Swap 190 | 1 9 2 23 2 4 4 22 12 8 5 9 6 19 3 4 29 28 Drop 225 | . 7 1 28 . 5 2 24 11 23 16 6 7 26 6 1 35 27 Fire 950 | 14 73 21 150 9 . 18 94 81 42 66 24 29 132 7 . 90 100 Melee 78 | . . . . . 4 . 9 3 2 . . 45 5 2 3 5 . Ram . | . . . . . . . . . . . . . . . . . . Kick . | . . . . . . . . . . . . . . . . . . Crush 2 | . . . . . . . 1 . . . . . 1 . . . . Escape Stasis 6 | . . . . . . . . . . 1 . . . . . 5 . Rewire 1 | . . . . . . . . . . . . . . . . 1 . Trap . | . . . . . . . . . . . . . . . . . . Miscellaneous . | . . . . . . . . . . . . . . . . . . Route ------- -11/Scrapyard -10/Materials (discovered 5 exits: *Mat x3 / [*Min] / Sub) -10/Mines (discovered 2 exits: *Mat x2) -9/Materials (discovered 4 exits: *Mat x2 / [*Min x2]) -9/Mines (discovered 2 exits: *Mat / *Exi) -9/Exiles -8/Mines (discovered 2 exits: *Mat x2) -8/Materials (discovered 2 exits: *Fac / Gar) -8/Garrison (discovered 3 exits: *Fac x3) -7/Factory (discovered 4 exits: *Fac / Sto / [*Low] / Gar) -7/Garrison (discovered 3 exits: *Fac x3) -7/Factory -7/Garrison (discovered 3 exits: *Fac x3) -6/Factory -6/Waste -6/Factory -6/Garrison (discovered 3 exits: *Fac x3) -5/Factory (discovered 2 exits: Upp x2) History --------- Turn | Location | Event 6 | -11/Scrapyard | Discovered new exit (range 15) 205 | -11/Scrapyard | Entered Materials 301 | -10/Materials | Build established: Mutant 724 | -10/Materials | Discovered new exit (range 15) 958 | -10/Materials | Core integrity fell below 50% 1091 | -10/Materials | Discovered new exit (range 5) 1251 | -10/Materials | Discovered new exit (range 16) 1349 | -10/Materials | Discovered new exit (range 16) 1439 | -10/Materials | Identified exit to Subcaves 1439 | -10/Materials | Learned location of 1 exit from Materials 1520 | -10/Materials | Loaded intel: 7 trap records 1648 | -10/Materials | Identified exit to Materials 1736 | -10/Materials | Learned location of 1 exit from Storage 1785 | -10/Materials | Learned Storage emergency access door positions 1816 | -10/Materials | Build established: Scavenger-Mutant 1874 | -10/Materials | Entered Mines 1874 | -10/Mines | Accompanied by 1 ally 1906 | -10/Mines | Learned 2 Materials zone layouts 1963 | -10/Mines | Escorted by a lone wolf Derelict 2102 | -10/Mines | Discovered exit to Materials (range 9) 2219 | -10/Mines | Discovered exit to Materials (range 15) 2452 | -10/Mines | Excavation squad dispatched 2452 | -10/Mines | A large section of the Mines collapsed 2848 | -10/Mines | Entered Materials 2848 | -9/Materials | Accompanied by 1 ally 2848 | -9/Materials | Evolved 2 slots: Propulsion x1, Utility x1 2849 | -9/Materials | Identified exit to Materials 2894 | -9/Materials | Repaired Beam Cannon 3166 | -9/Materials | Discovered new exit (range 9) 3489 | -9/Materials | Discovered exit to Materials (range 12) 3648 | -9/Materials | First assault squad dispatched 4441 | -9/Materials | Discovered new exit (range 7) 4750 | -9/Materials | Sterilization system engaged 4750 | -9/Materials | Non-combat units ordered to evacuate 4850 | -9/Materials | Combat units ordered to evacuate 5050 | -9/Materials | Ambient heat levels rising (+10) 5062 | -9/Materials | Entered Mines 5103 | -9/Mines | Met a Derelict bent on vengeance 5110 | -9/Mines | Build established: Mutant 5158 | -9/Mines | Discovered exit to Materials (range 8) 5310 | -9/Mines | Assisted by bots powering up and referring to "LRC-V3" 5790 | -9/Mines | Assembled infested the area 5882 | -9/Mines | Deemed a non-threat by the Exiles lab entrance 5882 | -9/Mines | Discovered new exit (range 5) 5897 | -9/Mines | Entered Exiles 5897 | -9/Exiles | Accompanied by 3 allies 5948 | -9/Exiles | Met 8R-AWN 5974 | -9/Exiles | Met EX-HEX 6022 | -9/Exiles | Met EX-BIN 6042 | -9/Exiles | Aligned with FarCom system 6044 | -9/Exiles | Given EX-Vault access code 6081 | -9/Exiles | Opened EX-Vault 6096 | -9/Exiles | Found Latent Energy Streamer 6129 | -9/Exiles | Warned to stay clear of 0b10 Research branches 6173 | -9/Exiles | Met EX-DEC 6180 | -9/Exiles | Learned location of Zion (-6) 6442 | -9/Exiles | Discovered new exit (range 10) 6458 | -9/Exiles | Left Exiles lab with Latent Energy Streamer 6458 | -9/Exiles | Entered Mines 6458 | -8/Mines | Accompanied by 3 allies 6590 | -8/Mines | Lost 3 allies 7467 | -8/Mines | Discovered exit to Materials (range 8) 7685 | -8/Mines | Discovered exit to Materials (range 5) 7846 | -8/Mines | Entered Materials 7846 | -8/Materials | Evolved 2 slots: Weapon x2 8017 | -8/Materials | Repaired Lgt. Treads 8156 | -8/Materials | Build established: Scavenger-Skirmisher 9156 | -8/Materials | Build established: Skirmisher 9239 | -8/Materials | Lost 3 parts (2n1w) 9446 | -8/Materials | First assault squad dispatched 9468 | -8/Materials | Repaired Enh. Autogun 9963 | -8/Materials | Discovered new exit (range 16) 10085 | -8/Materials | Build established: Scavenger-Skirmisher 10292 | -8/Materials | Identified exit to Garrison 10294 | -8/Materials | Entered Garrison 10371 | -8/Garrison | Phase Generator disabled 10454 | -8/Garrison | Triggered checkpoint 10535 | -8/Garrison | Spotted B-75 Beast 10819 | -8/Garrison | Core integrity fell below 50% 10834 | -8/Garrison | Triggered checkpoint 10898 | -8/Garrison | Triggered checkpoint 11033 | -8/Garrison | Discovered new exit (range 14) 11150 | -8/Garrison | Triggered checkpoint 11217 | -8/Garrison | Discovered new exit (range 36) 11217 | -8/Garrison | Discovered new exit (range 68) 11217 | -8/Garrison | Discovered new exit (range 75) 11359 | -8/Garrison | Lost 4 parts (1p1n2w) 11628 | -8/Garrison | Destroyed B-75 Beast 11696 | -8/Garrison | Installed Relay Interface Framework 11710 | -8/Garrison | Garrison Relay disabled 11874 | -8/Garrison | Entered Factory 11874 | -7/Factory | Evolved 2 slots: Propulsion x1, Utility x1 11875 | -7/Factory | Identified exit to Storage 12176 | -7/Factory | Discovered new exit (range 16) 12330 | -7/Factory | Fabricated Enh. Autogun (x1) 12937 | -7/Factory | Repaired Lgt. Treads 13271 | -7/Factory | Build established: Skirmisher 13574 | -7/Factory | Discovered new exit (range 12) 13921 | -7/Factory | Identified exit to Garrison 13921 | -7/Factory | Entered Garrison 13971 | -7/Garrison | Triggered checkpoint 14024 | -7/Garrison | Learned Factory security intel 14049 | -7/Garrison | Garrison Relay disabled 14165 | -7/Garrison | Found embedded Infiltrators 14187 | -7/Garrison | Triggered checkpoint 14211 | -7/Garrison | Triggered checkpoint 14227 | -7/Garrison | Triggered checkpoint 14528 | -7/Garrison | Discovered new exit (range 10) 14901 | -7/Garrison | Triggered checkpoint 15043 | -7/Garrison | Triggered checkpoint 15061 | -7/Garrison | Discovered new exit (range 14) 15217 | -7/Garrison | Discovered new exit (range 14) 15313 | -7/Garrison | Triggered checkpoint 15349 | -7/Garrison | Expanded RIF knowledge: Command Fork 15454 | -7/Garrison | Entered Factory 15593 | -7/Factory | Fabricated Adv. Hardlight Generator (x2) 15854 | -7/Factory | First assault squad dispatched 16093 | -7/Factory | Garrison activated, responded to threat 16278 | -7/Factory | Identified exit to Garrison 16278 | -7/Factory | Entered Garrison 16368 | -7/Garrison | Triggered checkpoint 16716 | -7/Garrison | Expanded RIF knowledge: Structural Interface 17038 | -7/Garrison | Build established: Scavenger-Skirmisher 17042 | -7/Garrison | Triggered checkpoint 17070 | -7/Garrison | Discovered new exit (range 68) 17070 | -7/Garrison | Discovered new exit (range 44) 17070 | -7/Garrison | Discovered new exit (range 23) 17223 | -7/Garrison | Found embedded Infiltrators 17257 | -7/Garrison | Entered Factory 17257 | -6/Factory | Accompanied by 2 allies 17257 | -6/Factory | Evolved 2 slots: Utility x2 17649 | -6/Factory | Found Exp. Targeting Computer 17652 | -6/Factory | Found Exp. Targeting Computer 17657 | -6/Factory | Found Exp. Targeting Computer 17867 | -6/Factory | Build established: Scavenger-Gunner 18029 | -6/Factory | Lost 3 parts (3w) 18088 | -6/Factory | Allied Derelicts emerged from ambush trap array 18177 | -6/Factory | Fabricated Enh. Autogun (x1) 18789 | -6/Factory | Repaired Broken Imp. Heavy Treads 19007 | -6/Factory | First assault squad dispatched 19394 | -6/Factory | Garrison activated, responded to threat 19614 | -6/Factory | Lost 4 parts (2u2w) 19627 | -6/Factory | Destroyed 14 combat bots 20028 | -6/Factory | Build established: Scavenger-Tank 20216 | -6/Factory | Sucked down chute 20216 | -6/Factory | Entered Waste 20231 | -6/Waste | EMP discharged 20231 | -6/Waste | System corruption reached 10% 20263 | -6/Waste | Spotted C-40 Crusher 20290 | -6/Waste | Spotted C-40 Crusher 20292 | -6/Waste | Spotted C-40 Crusher 20323 | -6/Waste | Spotted C-40 Crusher 20331 | -6/Waste | EMP discharged 20333 | -6/Waste | Spotted C-40 Crusher 20334 | -6/Waste | Spotted C-40 Crusher 20366 | -6/Waste | Discovered new exit (range 15) 20421 | -6/Waste | Entered Factory 20503 | -6/Factory | Build established: Mutant 20647 | -6/Factory | Identified exit to Garrison 20647 | -6/Factory | Entered Garrison 20839 | -6/Garrison | Triggered checkpoint 20916 | -6/Garrison | Lost 3 allies 20968 | -6/Garrison | Destroyed 11 combat bots 20971 | -6/Garrison | Garrison Relay disabled 21159 | -6/Garrison | Triggered checkpoint 21164 | -6/Garrison | Lost 3 allies 21177 | -6/Garrison | Triggered checkpoint 21420 | -6/Garrison | Garrison Relay disabled 21437 | -6/Garrison | Triggered checkpoint 21523 | -6/Garrison | Build established: Scavenger-Tank 21607 | -6/Garrison | Discovered new exit (range 3) 21687 | -6/Garrison | Triggered checkpoint 21856 | -6/Garrison | Discovered new exit (range 12) 21863 | -6/Garrison | Spotted B-75 Beast 21891 | -6/Garrison | Destroyed B-75 Beast 22107 | -6/Garrison | Triggered checkpoint 22161 | -6/Garrison | Spotted Striker 22161 | -6/Garrison | Spotted Striker 22221 | -6/Garrison | Destroyed Striker 22239 | -6/Garrison | Destroyed Striker 22284 | -6/Garrison | Destroyed 8 combat bots 22285 | -6/Garrison | Lost 7 parts (1p3u3w) 22305 | -6/Garrison | Triggered checkpoint 22312 | -6/Garrison | Garrison Relay disabled 22360 | -6/Garrison | Discovered new exit (range 4) 22569 | -6/Garrison | Expanded RIF knowledge: Command Fork 22645 | -6/Garrison | Entered Factory 22645 | -5/Factory | Evolved 2 slots: Weapon x2 22751 | -5/Factory | Allied Derelicts emerged from ambush trap array 22864 | -5/Factory | Lost 3 allies 23075 | -5/Factory | Central database locked down 23075 | -5/Factory | Identified exit to Upper Caves 23094 | -5/Factory | Build established: Executioner 23161 | -5/Factory | Repaired Adv. Heavy Treads 23357 | -5/Factory | Found Prototype Launcher 23357 | -5/Factory | Identified Mni. Smartbomb Launcher 23556 | -5/Factory | Lost 3 parts (1p2w) 23623 | -5/Factory | Fabricated M-13 Machinist (x1) 23845 | -5/Factory | Fabricated M-13 Machinist? 24145 | -5/Factory | First assault squad dispatched 24266 | -5/Factory | High security lockdown imminent 24346 | -5/Factory | High security lockdown engaged 24430 | -5/Factory | Core integrity fell below 50% 24482 | -5/Factory | Core integrity fell below 20% 24483 | -5/Factory | Lost 3 allies 24500 | -5/Factory | Destroyed by P-70 Sage with Tesla Rifle Last Messages --------------- 24476_ Lyr. Light Armor Plating blown off. 24476_ Centrium Light Armor Plating blown off. 24476_ Wave Gun blown off. 24476_ Relay Coupler [NC] blown off. 24476_ E-15 Imp destroyed. 24476_ Dropped Imp. Plasma Cutter. 24477_ Dropped Cld. Plasma Cannon. 24477_ Slug penetrates Earth. 24477_ Penetrated by Slug. 24481_ Dropped Huge Storage Unit. 24482_ Penetrated by Slug. 24485_ Slug penetrates P-70 Sage. 24485_ Penetrated by Slug. 24489_ Slug penetrates Wall. 24493_ C-30 ARC bursts open, deploying its payload. 24493_ H-66 Slayer unfolds itself. 24493_ P-70 Sage unfolds itself. 24493_ M-28 Smith unfolds itself. 24496_ Slug penetrates Wall. 24498_ Acquired Field Propulsion Drive. Map ----- +----------------------------------------------------+ | ## !=! *!!!%% ???????? | | # # ! !!==[!!!! ???????? | | ! =* *!![! ????????? | | ! =!* == !!!!%! ????????? | | !!! * * = =! %[ ???????? | | !! !! ! * "## ?????? | | #### !## # ### # % % % ????? | | ???######## ##?# ## ????? | | #????????#????# ?# % ???? | | #?????????????##?# g ???? | | #????????????????# ??? | | *#????????????????# ??? | | ! #????????????????# ??? | | #????????????????# " ?? | | #????????????????# "%" ?? | | #####????????????????# p """?? | | ?????????????????????# p p ""?? | | ?????????????????????############ ""?? | | ??????????????????????# """" # ""?? | | ??????????????????????# ""S"" ; ? | | ??????????????????????# "" " # ? | | ??????????????????????# # ?? | | ??????????????????????# # ?? | | ??????????????????????# # """ """ ??? | | ??????????????????????# # """ """ ??? | | ??????????????????????# @ # """ """ ??? | | ???????????????????#####+######## ???????? | | ???????????????????# # """?"""???????? | | ???????????????????# # ""????????????? | | ???????????????????# # "?????????????? | | ???????????????????# / ?????????????? | | ???????????????????# = # ?????????? ??? | | ???????????????????# ## ???????? #? | | ???????????????????# ## ? ??????? #? | | ???????????????????# ## #?#####??? #? | | ???????????????????# ## # ???? #? | | ???????????????????# ## # ????? #? | | ???????????????????# + + ??????? #? | | ???????????????????# ## # ?????? #? | | ???????????????????############### # ?????? #? | | ?????????????????????????????????# # ????? #? | | ?????????????????????????????????# ##+#???? #? | | ??????????????????????????????#### #???? #? | | ??????????????????????????????# ##### #? | | ??????????????????????????????# """" #? | | ??????????????????????????????# "F " ## | | ??????????????????????????????# #### * | | ??????????????????????????????# # ## ! | | ??????????????????????????????# ## # | | ?????????????????????##########+###" """ """ ## | +----------------------------------------------------+ Best States ------------- Heat Dissipation 87 Coolant Potential 80 Energy Generation 23 Energy Capacity 900 Matter Stores 300 Matter Capacity 300 Sight Range 16 Terrain Scan Density 10 Jamming Range 12 Corruption Block 15 Armor Coverage 300 Evasion (%) 61 Targeting Accuracy 24 Recoil Reduction 10 Kinecelleration 40 Offensive Hacking 24 Defensive Hacking 14 Relay Coupler Types 2 Relay Coupler Value 35 Authchip Count 1 Item Schematics ----------------- Machine Analyzer | -9/Materials | Scanalyzed ECM Suite | -9/Materials | Scanalyzed Datajack | -9/Materials | Scanalyzed Signal Interpreter | -9/Materials | Scanalyzed Lgt. Treads | -9/Materials | Scanalyzed Tractor Beam | -9/Materials | Extracted Hcp. Storage Unit | -9/Materials | Extracted Mace | -9/Materials | Extracted Trap Extractor | -9/Materials | Scanalyzed Mining Claw | -9/Materials | Extracted Autogun | -9/Materials | Extracted Com. Wheel | -9/Materials | Extracted Disposable Heat Sink | -9/Materials | Extracted Terrain Scan Processor | -9/Materials | Extracted Weight Redist. System | -9/Materials | Extracted Imp. Ion Engine | -9/Materials | Extracted Beam Cannon | -9/Materials | Extracted Lgt. Armor Plating | -9/Materials | Extracted Particle Gun | -9/Materials | Extracted Imp. Targeting Computer | -9/Materials | Extracted Hrd. Light Armor Plating | -9/Materials | Extracted Imp. Datajack | -8/Materials | Scanalyzed Hacking Suite | -8/Materials | Scanalyzed Pulse Rifle | -8/Materials | Scanalyzed Imp. Light Cannon | -8/Materials | Extracted Enh. Autogun | -7/Factory | Hacked Flak Gun | -7/Factory | Downloaded Remote Datajack | -5/Factory | Scanalyzed Robot Schematics ------------------ O-16 Technician | -10/Materials | Hacked M-13 Machinist | -10/Materials | Hacked M-28 Smith | -7/Factory | Hacked Fabricated ------------ Enh. Autogun | x1 | -7/Factory Adv. Hardlight Generator | x2 | -7/Factory | Preloaded Enh. Autogun | x1 | -6/Factory | Authchip M-13 Machinist | x1 | -5/Factory M-13 Machinist | x1 | -5/Factory Alien Tech Used ----------------- None Achievements -------------- None Challenges ------------ None Game ------ Seed ImprovedDirtyCore Manual? 0 Play Time 04:18:56 Cumulative 179.1 hours Start 2025.02.27 @ 20:07:36 End 2025.02.28 @ 21:09:19 Sessions 5 Manual Loads 0 Difficulty Rogue Special Mode None Game No. 88 Rogue 88 Adventurer 0 Explorer 0 Win Type - Total 0 Types 0/0/0/0/0/0/0/0/0 Lore% 53 Gallery% 71 Achievement% 57 Wizard Run 0 Options --------- Layout 0 ASCII 0 Keyboard 0 Movement Mouse Keybinds 0 Fullscreen 1 Font 24/Smallcaps Map View 183x50 Zoom Use 0% Tactical HUD 1 Map Filters NONE Filters NONE Steam 0 RUN: 54ddb219-b8c5-4a6d-9622-e4498a2a1d1d